bitfinex-derivatives/quotes_SOLF0:USTF0_20240904
["timestamp","ask_amount","ask_price","bid_price","bid_amount"]
[1725408805020,3.9026,128.14,128.12,0.05289024]
[1725408805326,2.7291,128.17,128.12,0.05289024]
[1725408805523,3.9021,128.16,128.13,3.9027]
[1725408805819,6.60749025,128.17,128.12,0.05289024]
[1725408806222,3.9021,128.16,128.12,3.95589024]
[1725408806617,6.60749025,128.17,128.12,3.95589024]
[1725408806817,3.9024,128.15,128.12,3.95589024]
[1725408807019,6.60749025,128.17,128.13,3.9028]
[1725408807215,3.9021,128.16,128.12,0.05289024]
[1725408807421,25.4533,128.18,128.12,0.05289024]
[1725408807820,3.9024,128.15,128.12,0.05289024]
[1725408808222,29.41561275,128.18,128.13,3.9026]
[1725408808524,3.9021,128.16,128.13,3.9026]
[1725408809931,2.894,128.23,128.14,24.0]
[1725408810121,28.3164,128.23,128.17,0.05880492]
[1725408810325,24.0,128.21,128.17,0.05880492]
[1725408810525,3.9013,128.18,128.17,0.05880492]
[1725408810926,8.29744893,128.23,128.17,0.05880492]
[1725408811124,234.7967,128.28,128.17,0.05880492]
[1725408811329,24.0,128.26,128.21,0.05724203]
[1725408811628,3.9,128.23,128.21,0.05724203]
[1725408811825,24.0,128.26,128.21,0.05724203]
[1725408812231,4.299,128.27,128.21,0.05724203]
[1725408812426,24.0,128.26,128.21,0.05724203]
[1725408812930,24.0,128.26,128.21,3.95744203]
[1725408813326,3.8996,128.24,128.21,3.95744203]
[1725408814332,31.7944,128.32,128.21,3.95744203]
[1725408814333,3.85481558,128.29,128.21,3.90620575]
[1725408814632,27.8985,128.28,128.24,0.06008317]
[1725408814930,2.8881,128.29,128.24,0.06008317]
[1725408815326,24.0,128.28,128.24,0.06008317]
[1725408815830,3.80651598,128.27,128.24,0.06008317]
[1725408817331,24.0,128.28,128.24,0.06008317]
[1725408817535,3.8987,128.27,128.24,0.06008317]
[1725408818026,24.0,128.26,128.24,0.06008317]
[1725408818627,24.0,128.26,128.22,3.8999]
[1725408818830,27.8989,128.26,128.22,3.8999]
[1725408819135,3.95406512,128.25,128.23,3.8998]
[1725408819531,24.05557391,128.25,128.23,0.05761526]
[1725408819832,2.9032,128.24,128.17,24.0]
[1725408820130,2.9032,128.24,128.18,3.83549777]
[1725408820337,2.9032,128.24,128.23,3.8998]
[1725408820529,2.9032,128.24,128.18,24.0]
[1725408820734,0.05715004,128.22,128.2,0.05746259]
[1725408821031,0.05715004,128.22,128.21,3.9001]
[1725408821740,0.05715004,128.22,128.2,3.95806259]
[1725408822032,0.05715004,128.22,128.2,0.05746259]
[1725408822230,0.05715004,128.22,128.21,3.9004]
[1725408823136,0.05715004,128.22,128.2,3.95806259]
[1725408823637,0.05715004,128.22,128.13,26.7932]
[1725408823838,27.9006,128.21,128.17,3.9014]
[1725408824024,24.0,128.21,128.13,26.7932]
[1725408824339,24.0,128.23,128.15,24.0]
[1725408824541,26.9032,128.24,128.19,3.9009]
[1725408824931,3.95315059,128.23,128.19,3.9009]
[1725408825742,3.9002,128.22,128.18,3.95056994]
[1725408827544,3.9002,128.22,128.19,3.9009]
[1725408827747,24.0,128.2,127.98,178.30063017]
[1725408827948,24.0,128.17,128.09,24.0]
[1725408828447,3.9024,128.15,128.11,3.9033]
[1725408828940,0.05503166,128.14,128.12,0.04951882]
[1725408829241,3.95763166,128.14,128.12,0.04951882]
[1725408829429,0.05503166,128.14,128.12,3.95261882]
[1725408829835,0.05503166,128.14,128.13,3.9028]
[1725408834145,0.05503166,128.14,128.12,3.95251882]
[1725408834350,0.05503166,128.14,128.12,0.04951882]
[1725408836150,24.0,128.13,128.05,24.0]
[1725408836452,24.0,128.13,128.06,3.97176118]
[1725408836752,1.4248,128.14,128.06,3.97176118]
[1725408836954,0.05273972,128.11,128.09,0.05866451]
[1725408837451,0.05273972,128.11,128.1,3.9037]
[1725408842855,0.05273972,128.11,128.1,27.9037]
[1725408843054,3.9017,128.17,128.14,3.9025]
[1725408843357,6.71407799,128.18,128.1,24.0]
[1725408843552,10.61557799,128.18,128.15,3.9022]
[1725408843955,6.76724089,128.18,128.15,3.95378258]
[1725408844356,3.9016,128.17,128.15,0.05158258]
[1725408845457,24.0,128.17,128.08,1.4229]
[1725408846052,3.9023,128.15,128.12,3.9029]
[1725408846258,3.95443055,128.15,128.12,3.95290625]
[1725408846462,0.05213055,128.15,128.12,0.05000625]
[1725408846757,3.95433055,128.15,128.12,3.95300625]
[1725408848062,0.05213055,128.15,128.13,3.9028]
[1725408849363,3.95433055,128.15,128.13,3.9028]
[1725408849661,3.95433055,128.15,128.12,3.95300625]
[1725408850166,24.05213055,128.15,128.12,0.05000625]
[1725408851051,3.9028,128.13,128.12,0.05000625]
[1725408853163,1.4172,128.14,128.06,24.0]
[1725408853355,1.4172,128.14,128.06,27.92905042]
[1725408853559,3.9031,128.12,128.1,3.9035]
[1725408854164,3.95961266,128.12,128.1,3.95549073]
[1725408855776,3.9034,128.11,128.1,0.05199073]
[1725408855977,24.05651266,128.12,128.04,101.03180533]
[1725408856266,24.0,128.12,128.04,101.03180533]
[1725408856470,24.0,128.12,128.07,3.9044]
[1725408857074,3.9039,128.1,128.08,0.05591806]
[1725408857258,3.90185766,128.1,128.08,0.05591806]
[1725408857460,0.05144798,128.11,128.08,0.05591806]
[1725408857663,3.904,128.09,128.08,0.05591806]
[1725408857873,7.76993543,128.09,128.08,0.05591806]
[1725408858072,3.86593543,128.09,128.08,0.05591806]
[1725408858376,3.9039,128.1,128.08,0.05591806]
[1725408858876,3.92020924,128.09,128.08,0.05591806]
[1725408859374,3.92020924,128.09,128.08,3.96021806]
[1725408859571,1.47394798,128.11,128.08,3.96021806]
[1725408859971,3.9039,128.1,128.08,3.96021806]
[1725408862371,0.05144798,128.11,128.08,0.05591806]
[1725408863078,0.05144798,128.11,128.1,3.9037]
[1725408865089,0.05144798,128.11,128.09,3.9039]
[1725408865292,4.0427996,128.11,128.09,3.9039]
[1725408866398,7.9463996,128.11,128.09,3.9039]
[1725408867788,4.0427996,128.11,128.1,3.9037]
[1725408868092,0.05144798,128.11,128.1,3.9037]
[1725408869291,3.89296554,128.11,128.08,0.05591806]
[1725408869798,3.9038,128.1,128.08,0.05591806]
[1725408869992,3.9038,128.1,128.08,3.96011806]
[1725408870691,3.904,128.09,128.08,0.05591806]
[1725408870895,27.89296554,128.11,128.08,0.05591806]
[1725408871395,3.904,128.1,128.08,0.05591806]
[1725408872502,3.904,128.1,128.08,3.96021806]
[1725408874395,7.79656554,128.11,128.09,3.9039]
[1725408874907,0.05144798,128.11,128.1,3.9037]
[1725408875502,3.89161311,128.11,128.1,3.9037]
[1725408876496,0.05144798,128.11,128.1,3.9037]
[1725408876810,0.05144798,128.11,128.09,3.9039]
[1725408876811,3.95484798,128.11,128.09,3.9039]
[1725408877012,7.84772508,128.11,128.09,3.9039]
[1725408877507,3.9037,128.1,128.08,3.96001806]
[1725408878100,7.84792508,128.11,128.09,3.904]
[1725408879303,3.95504798,128.11,128.09,3.904]
[1725408881313,0.05144798,128.11,128.1,3.9037]
[1725408881500,0.05144798,128.11,128.08,0.05591806]
[1725408882212,3.95484798,128.11,128.09,3.9039]
[1725408882398,3.93222327,128.11,128.08,0.05591806]
[1725408882709,13.52222327,128.11,128.08,0.05591806]
[1725408883312,3.9039,128.1,128.08,0.05591806]
[1725408884311,3.9039,128.1,128.08,3.96021806]
[1725408886713,3.9039,128.1,128.08,0.05591806]
[1725408887208,13.494,128.09,128.08,0.05591806]
[1725408887411,9.59,128.06,128.02,1.3661]
[1725408887708,3.9064,128.02,127.99,3.9069]
[1725408888411,3.96398917,128.02,127.99,3.96195926]
[1725408889602,3.96398917,128.02,128.0,3.9067]
[1725408890209,3.96398917,128.02,128.01,3.9065]
[1725408890210,0.05758917,128.02,128.01,3.9065]
[1725408899820,0.05758917,128.02,127.99,1.47365926]
[1725408900015,0.05758917,128.02,127.99,0.05505926]
[1725408900228,0.05758917,128.02,127.99,3.96205926]
[1725408900408,3.96398917,128.02,127.99,3.96205926]
[1725408900603,0.05758917,128.02,127.99,0.05505926]
[1725408900808,0.05758917,128.02,127.99,3.96205926]
[1725408901007,0.05758917,128.02,127.99,0.05505926]
[1725408901714,0.05758917,128.02,128.01,3.9065]
[1725408904211,3.83396976,128.07,128.05,3.9052]
[1725408904716,24.01,128.1,128.03,3.85368418]
[1725408904918,1.3836,128.11,128.02,24.01]
[1725408905111,1.3836,128.11,128.04,24.01]
[1725408905307,1.3836,128.11,128.06,0.05437454]
[1725408905512,0.05209368,128.1,128.06,4.03112038]
[1725408905721,0.05209368,128.1,128.06,0.05437454]
[1725408906113,0.05209368,128.1,128.09,3.9039]
[1725408915319,3.9043,128.09,128.06,0.05437454]
[1725408915526,0.05209368,128.1,128.06,0.05437454]
[1725408917532,0.05209368,128.1,128.09,3.904]
[1725408920623,27.96074244,128.16,128.13,3.9026]
[1725408920824,24.01,128.17,128.09,24.01]
[1725408921127,27.85269492,128.17,128.14,3.9023]
[1725408921626,27.90364099,128.17,128.14,3.95619237]
[1725408922014,0.05094607,128.17,128.15,3.9022]
[1725408922424,0.05094607,128.17,128.14,0.05389237]
[1725408922634,0.05094607,128.17,128.16,3.9019]
[1725408924832,234.7928,128.35,128.16,24.01]
[1725408925025,24.01,128.3,128.2,24.01]
[1725408925325,24.01,128.26,128.18,137.28950503]
[1725408925531,3.87024412,128.25,128.18,135.82730503]
[1725408926032,0.05404795,128.23,128.22,3.9001]
[1725408928035,4.3203,128.31,128.22,24.01]
[1725408928225,4.3203,128.31,128.21,3.84644284]
[1725408928226,8.2179,128.31,128.24,24.01]
[1725408928632,8.2179,128.31,128.26,3.8988]
[1725408929124,0.04955179,128.3,128.28,3.8982]
[1725408929337,0.04955179,128.3,128.27,0.05062812]
[1725408930333,0.04955179,128.3,128.27,3.94912812]
[1725408931431,0.04955179,128.3,128.27,24.06062812]
[1725408931925,0.04955179,128.3,128.29,3.898]
[1725408932526,0.04955179,128.3,128.29,27.908]
[1725408933124,0.07284282,128.4,128.29,24.01]
[1725408933434,0.07284282,128.4,128.33,24.01]
[1725408933637,0.07284282,128.4,128.36,3.8957]
[1725408933836,0.07284282,128.4,128.34,25.4594]
[1725408934336,0.05918625,128.38,128.37,3.8955]
[1725408936839,0.05918625,128.38,128.36,3.94752316]
[1725408937131,0.05918625,128.38,128.36,0.05172316]
[1725408939333,1.51468625,128.38,128.36,0.05172316]
[1725408939939,5.41008625,128.38,128.36,0.05172316]
[1725408940146,24.01,128.37,128.27,1.3709]
[1725408940327,24.01,128.37,128.28,24.01]
[1725408940530,1.4555,128.38,128.3,24.01]
[1725408941141,0.05100358,128.35,128.33,0.05567964]
[1725408942145,0.05100358,128.35,128.33,3.95227964]
[1725408942335,0.05100358,128.35,128.33,0.05567964]
[1725408942733,0.05100358,128.35,128.34,3.8964]
[1725408943838,0.05100358,128.35,128.33,3.95217964]
[1725408944247,0.05100358,128.35,128.33,0.05567964]
[1725408945743,24.01,128.34,128.23,1.4855]
[1725408945941,24.01,128.34,128.25,24.01]
[1725408946141,3.8975,128.31,128.27,3.8984]
[1725408946345,3.90932019,128.32,128.25,24.01]
[1725408946543,2.9322,128.33,128.25,24.01]
[1725408946743,0.05214815,128.3,128.28,0.05757753]
[1725408947242,0.05214815,128.3,128.29,3.898]
[1725408947638,0.05214815,128.3,128.28,0.05757753]
[1725408948535,3.94984815,128.3,128.28,0.05757753]
[1725408949447,0.05214815,128.3,128.28,0.05757753]
[1725408950551,0.05214815,128.3,128.28,3.95577753]
[1725408952449,0.05214815,128.3,128.28,0.05757753]
[1725408952653,3.898,128.29,128.28,0.05757753]
[1725408953256,29.97,128.29,128.2,29.97]
[1725408953645,3.8994,128.25,128.22,3.8999]
[1725408953952,29.97,128.29,128.22,3.8999]
[1725408954146,3.8994,128.25,128.21,3.9001]
[1725408954353,3.8994,128.25,128.24,0.0574182]
[1725408954551,3.8994,128.25,128.23,0.05492357]
[1725408954856,3.95586052,128.25,128.23,0.05492357]
[1725408955356,3.8995,128.24,128.23,0.05492357]
[1725408957446,30.02646052,128.25,128.18,111.81730503]
[1725408957756,1.4173,128.24,128.18,111.81730503]
[1725408957954,1.4173,128.24,128.14,33.78522805]
[1725408957955,1.4173,128.24,128.17,3.9014]
[1725408958158,1.4173,128.24,128.14,33.78522805]
[1725408958353,1.4173,128.24,128.14,29.97]
[1725408958551,3.9596977,128.21,128.18,0.05083421]
[1725408959546,3.9007,128.2,128.18,0.05083421]
[1725408960843,3.9595977,128.21,128.18,0.05083421]
[1725408962549,3.9595977,128.21,128.18,3.95203421]
[1725408962866,1.4223,128.26,128.18,3.95203421]
[1725408962867,7.816,128.34,128.2,89.91]
[1725408963164,0.07284282,128.4,128.2,89.91]
[1725408963165,2.85744282,128.4,128.33,29.97]
[1725408963646,0.07284282,128.4,128.33,29.97]
[1725408963845,0.07284282,128.4,128.35,29.97]
[1725408964456,0.07284282,128.4,128.35,33.95139755]
[1725408964853,0.05278351,128.39,128.36,0.05306876]
[1725408967357,3.98802087,128.38,128.29,29.97]
[1725408967762,29.97,128.37,128.25,29.97]
[1725408967963,35.31960171,128.37,128.25,29.97]
[1725408968365,0.05312325,128.32,128.3,0.0559306]
[1725408970367,0.05312325,128.32,128.3,3.9535306]
[1725408970566,0.05312325,128.32,128.3,0.0559306]
[1725408971760,0.05312325,128.32,128.31,3.8973]
[1725408973764,0.05312325,128.32,128.3,3.9535306]
[1725408973971,0.05312325,128.32,128.3,0.0559306]
[1725408975870,0.05312325,128.32,128.31,3.8973]
[1725408976273,31.3812,128.39,128.29,33.77111852]
[1725408977164,31.3812,128.39,128.33,3.8965]
[1725408977372,0.05489205,128.37,128.35,0.05678777]
[1725408978362,0.05489205,128.37,128.35,3.95288777]
[1725408978562,0.05489205,128.37,128.35,0.05678777]
[1725408978772,0.05489205,128.37,128.35,3.95288777]
[1725408979069,0.05489205,128.37,128.35,0.05678777]
[1725408980282,0.05489205,128.37,128.35,3.95288777]
[1725408980487,0.05489205,128.37,128.35,0.05678777]
[1725408980881,0.05489205,128.37,128.36,3.8958]
[1725408983471,0.07284282,128.4,128.39,3.8949]
[1725408985877,0.0505693,128.46,128.38,30.02949305]
[1725408986187,0.0505693,128.46,128.38,29.97]
[1725408986487,0.0505693,128.46,128.44,3.8932]
[1725408986684,0.0505693,128.46,128.38,31.351]
[1725408986888,0.05675713,128.43,128.42,3.894]
[1725408987382,0.0505693,128.46,128.45,3.8931]
[1725408989683,0.0505693,128.46,128.44,0.05924631]
[1725408990486,0.0505693,128.46,128.45,3.8931]
[1725408992582,0.05282077,128.47,128.46,3.8928]
[1725408992990,0.33007169,128.5,128.46,29.97]
[1725408993191,0.33007169,128.5,128.49,3.8919]
[1725408993590,0.27675957,128.56,128.48,29.97]
[1725408993890,0.05279551,128.52,128.49,0.05781737]
[1725408994883,3.8913,128.51,128.49,0.05781737]
[1725408995081,32.88429551,128.52,128.49,0.05781737]
[1725408995283,1.47,128.51,128.49,0.05781737]
[1725408996287,32.88429551,128.52,128.49,0.05781737]
[1725408996490,36.77549551,128.52,128.49,0.05781737]
[1725408996792,32.88429551,128.52,128.49,0.05781737]
[1725408997093,2.91429551,128.52,128.49,0.05781737]
[1725408997595,2.91429551,128.52,128.49,3.94951737]
[1725408997896,6.80529551,128.52,128.49,0.05781737]
[1725408998587,6.80539551,128.52,128.49,0.05781737]
[1725408999092,32.88429551,128.52,128.49,0.05781737]
[1725408999289,32.8315,128.52,128.42,31.4054]
[1725408999790,3.8921,128.49,128.45,3.8931]
[1725409000298,0.05050361,128.48,128.46,0.05450189]
[1725409000791,0.05050361,128.48,128.46,3.94730189]
[1725409000987,3.8927,128.47,128.4,29.97]
[1725409001188,3.8927,128.47,128.44,3.8934]
[1725409001391,3.8927,128.47,128.4,29.97]
[1725409001993,0.0562286,128.45,128.42,0.059235]
[1725409002184,30.0262286,128.45,128.42,0.059235]
[1725409002994,3.8937,128.43,128.42,0.059235]
[1725409003190,29.97,128.43,128.35,29.97]
[1725409003389,3.8946,128.4,128.36,3.8957]
[1725409004093,0.04930429,128.39,128.37,0.05541647]
[1725409004602,0.04930429,128.39,128.37,3.95091647]
[1725409005388,0.04930429,128.39,128.37,0.05541647]
[1725409005998,0.04930429,128.39,128.38,3.8952]
[1725409006197,0.04930429,128.39,128.37,0.05541647]
[1725409006397,0.04930429,128.39,128.37,3.95071647]
[1725409007199,0.04930429,128.39,128.38,3.8952]
[1725409008896,0.04930429,128.39,128.37,3.95081647]
[1725409009197,0.04930429,128.39,128.37,0.05541647]
[1725409009695,0.04930429,128.39,128.38,3.8952]
[1725409012701,1.423,128.46,128.37,29.97]
[1725409013001,5.316,128.46,128.37,29.97]
[1725409013700,0.05511685,128.43,128.4,0.05786551]
[1725409014096,0.05511685,128.43,128.4,1.54526551]
[1725409014296,0.05511685,128.43,128.42,3.8938]
[1725409017002,0.05511685,128.43,128.41,3.8941]
[1725409017198,0.05511685,128.43,128.4,0.05786551]
[1725409017805,0.05511685,128.43,128.35,35.26821828]
[1725409017806,29.97,128.44,128.35,29.97]
[1725409018000,1.4864,128.43,128.38,3.8951]
[1725409018302,3.8942,128.42,128.38,3.8951]
[1725409018807,0.05541549,128.41,128.39,3.9521521]
[1725409019000,0.05541549,128.41,128.39,0.0572521]
[1725409019208,0.05541549,128.41,128.39,3.9520521]
[1725409020104,0.05541549,128.41,128.39,0.0572521]
[1725409021001,3.97403394,128.41,128.36,3.8957]
[1725409021195,31.3864,128.42,128.33,29.97]
[1725409021502,35.25828014,128.42,128.33,29.97]
[1725409021705,3.8951,128.39,128.36,3.8958]
[1725409022012,0.05316055,128.39,128.36,0.05749509]
[1725409022309,0.05316055,128.39,128.38,3.8952]
[1725409022607,0.05316055,128.39,128.36,0.05749509]
[1725409022608,0.05316055,128.39,128.37,29.97]
[1725409022818,0.05316055,128.39,128.38,7.75473937]
[1725409023908,0.05316055,128.39,128.38,3.8952]
[1725409026610,0.17455673,128.53,128.37,31.3925]
[1725409026811,1.3577,128.51,128.41,29.97]
[1725409027007,9.05690788,128.51,128.46,3.8926]
[1725409027612,0.05521168,128.5,128.47,0.05602185]
[1725409028122,0.05521168,128.5,128.49,3.8919]
[1725409029206,0.05521168,128.5,128.48,3.8921]
[1725409030817,0.05521168,128.5,128.49,3.8919]
[1725409033111,0.17455673,128.53,128.52,3.891]
[1725409035222,0.11393215,128.6,128.52,31.4196]
[1725409035424,0.11393215,128.6,128.55,29.97]
[1725409035723,0.11393215,128.6,128.55,3.8898]
[1725409036112,3.94101515,128.59,128.56,0.05234161]
[1725409036316,0.05201515,128.59,128.56,0.05234161]
[1725409037632,0.05201515,128.59,128.57,3.8894]
[1725409038329,0.05201515,128.59,128.58,3.8892]
[1725409039922,0.05201515,128.59,128.57,3.8893]
[1725409041031,0.05201515,128.59,128.56,0.05234161]
[1725409041329,3.94101515,128.59,128.56,0.05234161]
[1725409041534,0.05201515,128.59,128.58,3.8892]
[1725409041733,0.05201515,128.59,128.56,0.05234161]
[1725409042536,0.05201515,128.59,128.56,3.94194161]
[1725409042836,3.94091515,128.59,128.56,0.05234161]
[1725409043334,3.8892,128.58,128.56,0.05234161]
[1725409043737,3.81200816,128.57,128.56,0.05234161]
[1725409043932,1.46551515,128.59,128.56,0.05234161]
[1725409044131,0.11393215,128.6,128.52,29.97]
[1725409044332,0.11393215,128.6,128.54,29.97]
[1725409044731,0.11393215,128.6,128.58,3.8891]
[1725409045238,0.16443603,128.6,128.58,3.94295298]
[1725409045639,0.16443603,128.6,128.59,3.8889]
[1725409046237,0.16443603,128.6,128.58,0.05385298]
[1725409047138,3.8889,128.59,128.58,0.05385298]
[1725409047339,29.97,128.59,128.5,1.412]
[1725409047541,1.4303,128.58,128.51,3.8911]
[1725409047739,3.8901,128.55,128.48,1.4874]
[1725409047939,3.93349327,128.56,128.5,3.8914]
[1725409048138,29.97,128.57,128.47,29.97]
[1725409048341,3.94202525,128.53,128.51,0.04960643]
[1725409049542,0.05112525,128.53,128.51,0.04960643]
[1725409050447,3.94202525,128.53,128.51,0.04960643]
[1725409050955,0.05112525,128.53,128.52,3.891]
[1725409051750,0.05112525,128.53,128.51,0.04960643]
[1725409052543,29.97,128.55,128.44,2.7971]
[1725409052754,29.97,128.53,128.45,3.8929]
[1725409052955,29.97,128.53,128.43,29.97]
[1725409053353,33.90432849,128.53,128.43,29.97]
[1725409053552,29.97,128.51,128.41,34.2128]
[1725409053750,0.05547511,128.47,128.45,0.05224226]
[1725409054559,29.97,128.47,128.37,29.97]
[1725409054759,32.7532,128.47,128.37,29.97]
[1725409054961,3.894,128.43,128.38,3.895]
[1725409055161,32.7532,128.47,128.38,3.895]
[1725409055371,32.7532,128.47,128.37,29.97]
[1725409055661,32.7532,128.47,128.41,0.05690031]
[1725409055662,0.05985309,128.43,128.41,0.05690031]
[1725409056049,3.95365309,128.43,128.41,0.05690031]
[1725409056556,0.05985309,128.43,128.41,30.02690031]
[1725409056748,3.85713561,128.51,128.41,30.02690031]
[1725409056949,1.3778,128.52,128.45,3.8931]
[1725409057152,3.8908,128.53,128.46,29.97]
[1725409057755,0.05667502,128.51,128.48,0.0507481]
[1725409058263,0.05667502,128.51,128.48,3.9428481]
[1725409059352,0.05667502,128.51,128.48,0.0507481]
[1725409060160,0.05667502,128.51,128.48,30.0207481]
[1725409060652,0.05667502,128.51,128.49,3.8917]
[1725409060858,0.05667502,128.51,128.48,0.0507481]
[1725409061671,0.05667502,128.51,128.48,3.9427481]
[1725409061866,0.05667502,128.51,128.48,0.0507481]
[1725409062261,3.8916,128.5,128.48,0.0507481]
[1725409062457,0.05667502,128.51,128.48,0.0507481]
[1725409062854,3.8916,128.5,128.48,0.0507481]
[1725409063068,0.05667502,128.51,128.48,0.0507481]
[1725409063460,3.8919,128.49,128.48,0.0507481]
[1725409063862,0.05667502,128.51,128.48,0.0507481]
[1725409064067,3.94827502,128.51,128.48,0.0507481]
[1725409064270,0.05667502,128.51,128.48,0.0507481]
[1725409065064,0.11393215,128.6,128.5,29.97]
[1725409065265,0.11393215,128.6,128.51,2.8911]
[1725409065463,0.11393215,128.6,128.51,1.4737]
[1725409065464,29.97,128.59,128.51,1.4737]
[1725409065667,1.3734,128.58,128.48,29.97]
[1725409065875,3.93672118,128.57,128.48,29.97]
[1725409066073,0.05013138,128.54,128.51,0.05004165]
[1725409066870,0.05013138,128.54,128.52,3.8908]
[1725409067167,0.05013138,128.54,128.51,0.05004165]
[1725409067574,0.05013138,128.54,128.51,3.94114165]
[1725409068173,0.05013138,128.54,128.52,3.891]
[1725409069165,3.94073138,128.54,128.51,0.05004165]
[1725409070776,0.05013138,128.54,128.51,3.94134165]
[1725409072575,3.94053138,128.54,128.51,3.94134165]
[1725409074180,3.8907,128.53,128.51,3.94134165]
[1725409074677,3.94063138,128.54,128.51,3.94134165]
[1725409076773,0.05013138,128.54,128.53,3.8907]
[1725409077076,0.05013138,128.54,128.51,0.05004165]
[1725409078678,0.05013138,128.54,128.52,3.8908]
[1725409078883,0.05013138,128.54,128.51,0.05004165]
[1725409079073,0.05013138,128.54,128.51,3.94114165]
[1725409079891,3.94053138,128.54,128.51,3.94114165]
[1725409080086,0.05013138,128.54,128.51,3.94114165]
[1725409080390,0.05013138,128.54,128.52,3.8909]
[1725409080576,0.05013138,128.54,128.51,0.05004165]
[1725409080777,0.05013138,128.54,128.53,29.97]
[1725409080985,0.05013138,128.54,128.53,33.8607]
[1725409081385,227.0,128.62,128.53,29.97]
[1725409081691,0.54355791,128.63,128.53,29.97]
[1725409082075,3.97417781,128.61,128.53,29.97]
[1725409082385,0.05592135,128.58,128.55,0.05868295]
[1725409082785,0.05592135,128.58,128.57,3.8893]
[1725409083583,0.05592135,128.58,128.55,0.05868295]
[1725409083584,0.54355791,128.63,128.55,0.05868295]
[1725409083791,0.54355791,128.63,128.58,29.97]
[1725409084290,0.54355791,128.63,128.61,3.888]
[1725409084677,0.59538054,128.63,128.61,3.94365673]
[1725409086577,4.48308054,128.63,128.61,0.05565673]
[1725409087379,3.888,128.62,128.61,0.05565673]
[1725409087892,29.97,128.62,128.52,3.8908]
[1725409088092,29.97,128.62,128.51,29.97]
[1725409088591,3.889,128.59,128.56,3.8895]
[1725409088793,3.94875825,128.59,128.56,3.94720869]
[1725409090296,3.8892,128.58,128.56,3.94720869]
[1725409091798,3.8895,128.57,128.56,0.05770869]
[1725409094707,0.05975825,128.59,128.58,3.8892]
[1725409094915,4.39595821,128.66,128.57,34.3562]
[1725409095307,3.8871,128.65,128.57,4.3862]
[1725409095603,34.36595821,128.66,128.57,4.3862]
[1725409095797,4.43135791,128.63,128.59,3.8886]
[1725409096000,0.05249602,128.62,128.6,0.05000657]
[1725409096707,0.05249602,128.62,128.6,3.93840657]
[1725409097104,0.05249602,128.62,128.6,0.05000657]
[1725409097610,0.05249602,128.62,128.61,3.8883]
[1725409099400,0.54355791,128.63,128.62,3.888]
[1725409099612,0.51000925,128.66,128.62,29.97]
[1725409100500,0.51000925,128.66,128.63,0.0532524]
[1725409100501,0.05858462,128.65,128.63,0.0532524]
[1725409100912,0.05858462,128.65,128.64,3.8873]
[1725409103112,0.05858462,128.65,128.63,0.0532524]
[1725409104311,0.51000925,128.66,128.63,0.0532524]
[1725409105114,0.51000925,128.66,128.64,3.8873]
[1725409105309,0.55949585,128.66,128.64,3.8873]
[1725409105612,0.55949585,128.66,128.65,3.887]
[1725409105813,0.55949585,128.66,128.63,0.0532524]
[1725409106814,3.8872,128.65,128.63,0.0532524]
[1725409107015,0.55949585,128.66,128.63,0.0532524]
[1725409107512,29.97,128.65,128.63,0.0532524]
[1725409107917,3.8873,128.64,128.63,0.0532524]
[1725409108308,29.97,128.65,128.54,31.4452]
[1725409108518,29.97,128.65,128.57,3.8892]
[1725409108716,29.97,128.63,128.54,2.9204]
[1725409109107,1.4793,128.62,128.55,3.83849195]
[1725409109312,3.84165782,128.61,128.55,3.83849195]
[1725409109604,0.05714844,128.59,128.57,0.05686168]
[1725409110412,3.8892,128.58,128.57,0.05686168]
[1725409110613,0.05714844,128.59,128.57,0.05686168]
[1725409111613,0.05714844,128.59,128.57,3.94626168]
[1725409111919,0.05714844,128.59,128.57,0.05686168]
[1725409112119,3.8878,128.63,128.57,29.97]
[1725409112318,1.92610925,128.66,128.59,29.97]
[1725409112622,4.39690925,128.66,128.59,29.97]
[1725409112811,4.39690925,128.66,128.62,3.8877]
[1725409113216,0.05762574,128.65,128.63,0.0510142]
[1725409113421,0.05358712,128.65,128.63,0.05910883]
[1725409113916,0.05358712,128.65,128.64,3.8873]
[1725409116009,0.51000925,128.66,128.65,3.887]
[1725409116705,0.51000925,128.66,128.63,33.91650883]
[1725409116906,0.51000925,128.66,128.63,0.05910883]